bitfinex-derivatives/quotes_BTCF0:USTF0_20241103
["timestamp","ask_amount","ask_price","bid_price","bid_amount"]
[1730669778756,0.531383,69230.0,69229.0,0.12214998]
[1730669779564,0.531383,69230.0,69229.0,0.067023]
[1730669779856,0.531383,69230.0,69229.0,0.13714998]
[1730669779857,0.532383,69230.0,69229.0,0.13714998]
[1730669780057,0.532383,69230.0,69229.0,0.07212698]
[1730669780260,0.532383,69230.0,69229.0,0.015]
[1730669780567,0.533383,69230.0,69229.0,0.015]
[1730669782159,0.5641001,69230.0,69229.0,0.015]
[1730669786058,0.9974601,69230.0,69229.0,0.015]
[1730669786264,0.9974601,69230.0,69229.0,0.05779031]
[1730669786462,0.9974601,69230.0,69229.0,0.015]
[1730669787558,0.5641001,69230.0,69229.0,0.015]
[1730669787962,0.9974601,69230.0,69229.0,0.015]
[1730669788260,0.5641001,69230.0,69229.0,0.015]
[1730669788463,0.4575401,69230.0,69229.0,0.014]
[1730669788764,0.5603001,69230.0,69229.0,0.10881431]
[1730669789256,0.5603001,69230.0,69229.0,0.066024]
[1730669789466,0.5603001,69230.0,69229.0,0.065024]
[1730669790552,0.3608,69230.0,69229.0,0.066024]
[1730669790766,0.3608,69240.0,69239.0,0.065015]
[1730669791262,0.10376,69243.0,69242.0,0.065012]
[1730669792265,0.065003,69252.0,69249.0,0.065005]
[1730669792465,0.10376,69251.0,69249.0,0.065005]
[1730669793062,0.10376,69251.0,69250.0,0.065004]
[1730669793770,0.10376,69251.0,69242.0,0.001]
[1730669793771,0.18992195,69252.0,69249.0,0.002]
[1730669793966,0.18992195,69252.0,69251.0,0.065003]
[1730669794158,0.29368195,69252.0,69251.0,0.065003]
[1730669794664,0.29368195,69252.0,69249.0,0.002]
[1730669794665,0.065004,69250.0,69249.0,0.002]
[1730669795964,0.065005,69249.0,69248.0,0.065006]
[1730669796462,0.065005,69249.0,69233.0,0.127719]
[1730669796463,0.065012,69245.0,69244.0,0.06501]
[1730669796669,0.18993095,69245.0,69244.0,0.06501]
[1730669798070,0.19293095,69245.0,69244.0,0.06501]
[1730669798868,0.19893095,69245.0,69244.0,0.06601]
[1730669799467,0.009,69245.0,69244.0,0.06601]
[1730669799671,0.072009,69245.0,69244.0,0.06501]
[1730669799860,0.076009,69245.0,69244.0,0.06501]
[1730669800259,0.069009,69245.0,69244.0,0.06501]
[1730669800468,0.19792795,69245.0,69244.0,0.06501]
[1730669800867,0.19392795,69245.0,69244.0,0.06501]
[1730669801064,0.20092795,69245.0,69244.0,0.06501]
[1730669801671,0.20092795,69245.0,69244.0,0.06601]
[1730669801672,0.22762971,69245.0,69244.0,0.06601]
[1730669802069,0.22762971,69245.0,69244.0,0.001]
[1730669802568,0.95766071,69245.0,69238.0,0.04275564]
[1730669802772,0.95766071,69245.0,69220.0,0.065031]
[1730669802773,0.065021,69233.0,69231.0,0.065022]
[1730669802972,0.22867895,69232.0,69231.0,0.065022]
[1730669803285,0.29369995,69232.0,69231.0,0.065022]
[1730669803881,0.29369995,69232.0,69231.0,0.066022]
[1730669807074,0.32340995,69232.0,69231.0,0.066022]
[1730669811379,0.32340995,69232.0,69231.0,0.001]
[1730669811789,0.21964995,69232.0,69231.0,0.001]
[1730669812085,0.32340995,69232.0,69231.0,0.001]
[1730669812473,0.32340995,69232.0,69231.0,0.066022]
[1730669812678,0.13347,69232.0,69231.0,0.12320188]
[1730669812875,0.10376,69232.0,69231.0,0.12320188]
[1730669813485,0.10376,69232.0,69231.0,0.05817988]
[1730669813987,0.10376,69232.0,69231.0,0.001]
[1730669814174,0.10376,69232.0,69231.0,0.066022]
[1730669814984,0.36156,69234.0,69233.0,0.06502]
[1730669815285,0.4950628,69234.0,69233.0,0.06502]
[1730669815586,0.3918628,69234.0,69233.0,0.06502]
[1730669815788,0.4950628,69234.0,69233.0,0.06502]
[1730669816185,0.4970628,69234.0,69233.0,0.06502]
[1730669816877,0.4980628,69234.0,69233.0,0.06502]
[1730669817080,0.3638,69234.0,69233.0,0.06502]
[1730669818684,0.3618,69234.0,69233.0,0.06502]
[1730669818991,0.3608,69234.0,69233.0,0.06602]
[1730669819575,0.3638,69234.0,69233.0,0.06502]
[1730669819779,0.3638,69234.0,69233.0,0.15884066]
[1730669820586,0.428819,69234.0,69233.0,0.13657655]
[1730669820889,0.428819,69234.0,69233.0,0.06502]
[1730669824096,0.428819,69234.0,69224.0,0.09489948]
[1730669824097,0.06502,69233.0,69230.0,0.07157209]
[1730669824294,0.3608,69232.0,69228.0,0.07157209]
[1730669824499,0.065025,69228.0,69227.0,0.05731398]
[1730669824693,0.065026,69227.0,69226.0,0.05731398]
[1730669824894,0.065026,69227.0,69214.0,0.02995657]
[1730669824895,0.48571895,69227.0,69225.0,0.05731398]
[1730669825088,0.065027,69226.0,69225.0,0.05731398]
[1730669825292,0.065028,69225.0,69224.0,0.05731398]
[1730669825490,0.065029,69224.0,69223.0,0.05731398]
[1730669825695,0.18994795,69224.0,69223.0,0.05731398]
[1730669825994,0.06503,69223.0,69222.0,0.05731398]
[1730669826194,0.065039,69214.0,69213.0,0.065039]
[1730669826498,0.168279,69214.0,69213.0,0.065039]
[1730669827484,0.10324,69214.0,69209.0,0.05731908]
[1730669827685,0.10324,69214.0,69206.0,0.0331]
[1730669827686,0.065044,69208.0,69206.0,0.0331]
[1730669827984,0.065044,69208.0,69203.0,0.05948622]
[1730669828186,0.48571895,69210.0,69203.0,0.06721514]
[1730669828187,0.55076595,69204.0,69203.0,0.06721514]
[1730669828388,0.65400595,69204.0,69203.0,0.06721514]
[1730669829289,0.65400595,69204.0,69203.0,0.07921514]
[1730669829290,0.65500595,69204.0,69203.0,0.07921514]
[1730669830094,0.65600595,69204.0,69203.0,0.07921514]
[1730669830686,0.65600595,69204.0,69203.0,0.01416714]
[1730669830897,0.68624106,69204.0,69203.0,0.01416714]
[1730669831091,0.68624106,69204.0,69203.0,0.012]
[1730669831286,1.11976106,69204.0,69203.0,0.012]
[1730669831488,1.11976106,69204.0,69192.0,0.065059]
[1730669831693,0.065061,69190.0,69182.0,0.09302844]
[1730669831994,0.10324,69189.0,69188.0,0.065062]
[1730669832393,0.168302,69189.0,69188.0,0.065062]
[1730669833395,0.168302,69189.0,69188.0,0.068062]
[1730669834093,0.168302,69189.0,69188.0,0.070062]
[1730669837299,0.10324,69189.0,69188.0,0.070062]
[1730669838398,0.168302,69189.0,69188.0,0.070062]
[1730669840802,0.02971697,69190.0,69189.0,0.065062]
[1730669841007,0.10328,69190.0,69189.0,0.065062]
[1730669841903,0.065062,69189.0,69188.0,0.002]
[1730669842312,0.10328,69190.0,69185.0,0.065064]
[1730669842500,0.18998295,69186.0,69185.0,0.065064]
[1730669843393,0.18998295,69186.0,69185.0,0.066064]
[1730669844297,0.55078295,69186.0,69185.0,0.066064]
[1730669844705,0.55178295,69186.0,69185.0,0.067064]
[1730669844897,0.55278295,69186.0,69185.0,0.067064]
[1730669846799,0.51747307,69186.0,69185.0,0.067064]
[1730669847608,0.49555412,69186.0,69185.0,0.067064]
[1730669848407,0.39255412,69186.0,69185.0,0.067064]
[1730669848597,0.49555412,69186.0,69185.0,0.067064]
[1730669848798,0.002,69186.0,69185.0,0.067064]
[1730669848997,0.103,69187.0,69186.0,0.065064]
[1730669849206,0.103,69187.0,69186.0,0.10781282]
[1730669849394,0.103,69187.0,69186.0,0.096364]
[1730669849711,0.3608,69193.0,69192.0,0.065059]
[1730669850011,0.4638,69193.0,69192.0,0.065059]
[1730669850510,0.58871895,69193.0,69192.0,0.065059]
[1730669850809,0.48571895,69193.0,69192.0,0.065059]
[1730669851008,0.58871895,69193.0,69192.0,0.065059]
[1730669851703,0.59071895,69193.0,69192.0,0.065059]
[1730669852603,0.59071895,69193.0,69185.0,0.065064]
[1730669852801,0.48571895,69186.0,69185.0,0.065064]
[1730669853003,0.48571895,69186.0,69185.0,0.10790064]
[1730669853305,0.48571895,69186.0,69185.0,0.04283664]
[1730669853508,0.065065,69185.0,69184.0,0.065066]
[1730669854610,0.065065,69185.0,69184.0,0.066066]
[1730669854908,0.00088,69186.0,69185.0,0.065065]
[1730669855115,0.103,69186.0,69185.0,0.065065]
[1730669855301,0.22791895,69186.0,69185.0,0.065065]
[1730669855500,0.22791895,69186.0,69185.0,0.23205702]
[1730669855705,0.22791895,69186.0,69185.0,0.23203706]
[1730669855908,0.22791895,69186.0,69185.0,0.16064266]
[1730669856105,0.22791895,69186.0,69185.0,0.13663557]
[1730669856404,0.22891895,69186.0,69185.0,0.067065]
[1730669856809,0.22891895,69186.0,69185.0,0.13863557]
[1730669857011,0.22891895,69186.0,69185.0,0.067065]
[1730669857204,0.22991895,69186.0,69185.0,0.068065]
[1730669858115,0.22991895,69186.0,69185.0,0.16384712]
[1730669859308,0.29498295,69186.0,69185.0,0.16384712]
[1730669860511,0.29498295,69186.0,69185.0,0.16395059]
[1730669860916,0.105,69186.0,69185.0,0.16395059]
[1730669861712,0.29498295,69186.0,69185.0,0.16395059]
[1730669862314,0.29498295,69186.0,69185.0,0.09888559]
[1730669862702,0.19198295,69186.0,69185.0,0.003]
[1730669862908,0.32798295,69186.0,69185.0,0.003]
[1730669866704,0.105,69186.0,69185.0,0.068065]
[1730669866910,0.105,69186.0,69185.0,0.13983378]
[1730669867118,0.105,69186.0,69185.0,0.23588033]
[1730669867417,0.105,69186.0,69185.0,0.13983378]
[1730669868619,0.105,69186.0,69185.0,0.16403699]
[1730669869119,0.4658,69186.0,69185.0,0.068065]
[1730669874012,0.530864,69186.0,69185.0,0.068065]
[1730669874922,0.530864,69186.0,69185.0,0.1397306]
[1730669875220,0.530864,69186.0,69185.0,0.068065]
[1730669875406,0.427864,69186.0,69185.0,0.068065]
[1730669875711,0.530984,69186.0,69185.0,0.068065]
[1730669880115,0.427864,69186.0,69185.0,0.068065]
[1730669880311,0.3628,69186.0,69185.0,0.068065]
[1730669880615,0.3628,69186.0,69185.0,0.501665]
[1730669880819,0.3628,69186.0,69185.0,0.68343864]
[1730669881012,0.3628,69186.0,69185.0,0.59737741]
[1730669881214,0.3628,69186.0,69185.0,0.16377741]
[1730669881514,0.3628,69186.0,69185.0,0.34581904]
[1730669883627,0.3628,69186.0,69185.0,0.25975781]
[1730669883812,0.002,69186.0,69185.0,0.25975781]
[1730669886130,0.03088823,69191.0,69190.0,0.065061]
[1730669886328,0.10312,69194.0,69193.0,0.065058]
[1730669887425,0.3608,69203.0,69193.0,0.065058]
[1730669887426,0.12491895,69201.0,69193.0,0.0716845]
[1730669887625,0.12491895,69201.0,69196.0,0.065055]
[1730669887626,0.46392,69197.0,69196.0,0.065055]
[1730669888427,0.49370722,69197.0,69196.0,0.065055]
[1730669889217,0.49870722,69197.0,69196.0,0.065055]
[1730669889423,0.50270722,69197.0,69196.0,0.065055]
[1730669889938,0.3648,69197.0,69196.0,0.065055]
[1730669890228,0.3608,69211.0,69210.0,0.065042]
[1730669890427,0.12491895,69218.0,69210.0,0.065042]
[1730669890624,0.3608,69219.0,69218.0,0.065034]
[1730669890824,0.3608,69219.0,69218.0,0.12226531]
[1730669891220,0.3608,69219.0,69218.0,0.065034]
[1730669891823,0.3648,69219.0,69218.0,0.498434]
[1730669892234,0.3648,69219.0,69218.0,0.55552895]
[1730669892828,0.3698,69219.0,69218.0,0.55552895]
[1730669893324,0.3698,69219.0,69218.0,0.498434]
[1730669894034,0.3668,69219.0,69218.0,0.504434]
[1730669894536,0.3658,69219.0,69218.0,0.498434]
[1730669894738,0.3698,69219.0,69218.0,0.498434]
[1730669894940,0.3698,69219.0,69218.0,0.52890162]
[1730669897237,0.3698,69219.0,69218.0,0.09550162]
[1730669898142,0.3698,69219.0,69218.0,0.15093795]
[1730669898736,0.009,69219.0,69218.0,0.15093795]
[1730669899239,0.13391895,69219.0,69218.0,0.12047033]
[1730669901136,0.13391895,69219.0,69218.0,0.05543633]
[1730669901137,0.30203195,69219.0,69218.0,0.05543633]
[1730669903046,0.33223371,69219.0,69218.0,0.05543633]
[1730669904940,0.33223371,69219.0,69218.0,0.12047033]
[1730669905239,0.20731476,69219.0,69218.0,0.12047033]
[1730669905545,0.10423476,69219.0,69218.0,0.12047033]
[1730669905737,0.20719476,69219.0,69218.0,0.12047033]
[1730669906542,0.14216176,69219.0,69218.0,0.12047033]
[1730669906732,0.33211371,69219.0,69218.0,0.05543633]
[1730669907841,0.76551371,69219.0,69218.0,0.05543633]
[1730669913149,0.33211371,69219.0,69218.0,0.05543633]
[1730669913352,0.20719476,69219.0,69218.0,0.12047033]
[1730669914253,0.10423476,69219.0,69218.0,0.12047033]
[1730669914451,0.20719476,69219.0,69218.0,0.12047033]
[1730669916451,0.14216176,69219.0,69218.0,0.12047033]
[1730669918156,0.03920176,69219.0,69218.0,0.12047033]
[1730669918454,0.14216176,69219.0,69218.0,0.12047033]
[1730669918844,0.14216176,69219.0,69218.0,0.19181141]
[1730669919358,0.14216176,69219.0,69218.0,0.21402476]
[1730669919855,0.009,69219.0,69218.0,0.64742476]
[1730669920069,0.009,69219.0,69218.0,0.73303406]
[1730669922149,0.009,69219.0,69218.0,0.29963406]
[1730669922745,0.009,69219.0,69218.0,0.21402476]
[1730669931558,0.009,69219.0,69218.0,0.21373737]
[1730669933158,0.009,69219.0,69218.0,0.17772773]
[1730669935648,0.009,69219.0,69218.0,0.12047033]
[1730669936657,0.009,69219.0,69218.0,0.1777255]
[1730669937758,0.009,69219.0,69218.0,0.12047033]
[1730669938850,0.074033,69219.0,69218.0,0.12047033]
[1730669939463,0.1560557,69219.0,69218.0,0.12047033]
[1730669940557,0.009,69219.0,69218.0,0.12047033]
[1730669940865,0.009,69219.0,69218.0,0.21395103]
[1730669941869,0.009,69219.0,69218.0,0.45018258]
[1730669942051,0.46372,69229.0,69228.0,0.065025]
[1730669942252,0.3608,69229.0,69228.0,0.1585057]
[1730669943361,0.3608,69229.0,69228.0,0.1605057]
[1730669946563,0.3608,69229.0,69228.0,0.19089016]
[1730669947359,0.3608,69229.0,69228.0,0.27681717]
[1730669947966,0.3608,69229.0,69228.0,0.1605057]
[1730669948154,0.3608,69229.0,69228.0,0.10997764]
[1730669949068,0.3608,69229.0,69228.0,0.10999028]
[1730669949965,0.3608,69229.0,69228.0,0.067025]
[1730669950154,0.3608,69229.0,69228.0,0.1099994]
[1730669953567,0.3608,69229.0,69228.0,0.067025]
[1730669953777,0.3608,69235.0,69228.0,0.12429519]
[1730669953966,0.3608,69235.0,69234.0,0.065019]
[1730669954863,0.3658,69235.0,69234.0,0.065019]
[1730669955166,0.065021,69233.0,69231.0,0.065021]
[1730669955467,0.25548752,69232.0,69231.0,0.065021]
[1730669955861,0.19046652,69232.0,69231.0,0.065021]
[1730669956458,0.0655,69232.0,69231.0,0.065021]
[1730669957570,0.0675,69232.0,69231.0,0.065021]
[1730669957973,0.002,69232.0,69231.0,0.065021]
[1730669958367,0.003,69232.0,69231.0,0.22956745]
[1730669958561,0.003,69232.0,69231.0,0.15797971]
[1730669958764,0.003,69232.0,69231.0,0.24390672]
[1730669958966,0.003,69232.0,69231.0,0.15797971]
[1730669963576,0.003,69232.0,69231.0,0.13660798]
[1730669963771,0.003,69232.0,69231.0,0.15774887]
[1730669965375,0.003,69232.0,69231.0,0.1365941]
[1730669966868,0.003,69232.0,69231.0,0.22910512]
[1730669967069,0.003,69232.0,69231.0,0.15753202]
[1730669970283,0.003,69232.0,69231.0,0.065021]
[1730669971576,0.003,69232.0,69228.0,0.36224]
[1730669971577,0.065024,69229.0,69228.0,0.00144]
[1730669971778,0.065024,69229.0,69226.0,0.065027]
[1730669971779,0.065026,69227.0,69226.0,0.065027]
[1730669972982,0.065026,69227.0,69226.0,0.069027]
[1730669973485,0.0647,69228.0,69227.0,0.065026]
[1730669973682,0.0315,69231.0,69227.0,0.065026]
[1730669973882,0.10288,69232.0,69227.0,0.10801328]
[1730669974180,0.10288,69232.0,69231.0,0.065022]
[1730669974669,0.10288,69234.0,69233.0,0.06502]
[1730669975284,0.0309,69240.0,69230.0,0.3608]
[1730669975489,0.0309,69240.0,69236.0,0.065017]
[1730669975781,0.03061246,69239.0,69236.0,0.065017]
[1730669975987,0.00216752,69237.0,69236.0,0.065017]
[1730669976584,0.00916752,69237.0,69236.0,0.066017]
[1730669977475,0.00916752,69237.0,69236.0,0.18820985]
[1730669977681,0.00916752,69237.0,69236.0,0.18920985]
[1730669977682,0.01516752,69237.0,69236.0,0.18920985]
[1730669979891,0.01516752,69237.0,69236.0,0.18911407]
[1730669981386,0.01516752,69237.0,69236.0,0.1590939]
[1730669981580,0.013,69237.0,69236.0,0.067017]
[1730669982083,0.013,69237.0,69236.0,0.002]
[1730669982394,0.140716,69237.0,69236.0,0.002]
[1730669982685,0.09056203,69237.0,69236.0,0.002]
[1730669983077,0.36156,69238.0,69236.0,0.002]
[1730669983278,0.3608,69238.0,69237.0,0.065016]
[1730669984388,0.3678,69238.0,69237.0,0.065016]
[1730669984988,0.3748,69238.0,69237.0,0.066016]
[1730669985189,0.47768,69238.0,69237.0,0.066016]
[1730669985396,0.47068,69238.0,69237.0,0.066016]
[1730669985589,0.47068,69238.0,69237.0,0.067016]
[1730669985590,0.47768,69238.0,69237.0,0.067016]
[1730669988800,0.3748,69238.0,69237.0,0.067016]
[1730669992494,0.3748,69238.0,69237.0,0.15914035]
[1730669995101,0.3748,69238.0,69237.0,0.15914118]
[1730669997390,0.3748,69238.0,69237.0,0.13863099]
[1730670000416,0.99806152,69238.0,69237.0,0.002]
[1730670000608,0.471015,69238.0,69237.0,0.002]
[1730670000898,1.13206152,69238.0,69237.0,0.002]
[1730670001103,0.59598152,69238.0,69237.0,0.002]
[1730670001302,0.573815,69238.0,69237.0,0.002]
[1730670001492,0.573815,69238.0,69237.0,0.067016]
[1730670002494,0.4776,69238.0,69237.0,0.067016]
[1730670003010,0.3748,69238.0,69237.0,0.067016]
[1730670003594,0.014,69238.0,69237.0,0.067016]
[1730670008511,0.014,69238.0,69237.0,0.097116]
[1730670009302,0.18666652,69257.0,69237.0,0.097116]
[1730670009303,0.1028,69250.0,69237.0,0.53698684]
[1730670009505,0.1028,69250.0,69249.0,0.065005]
[1730670009806,0.0617,69257.0,69251.0,0.065003]
[1730670009807,0.4636,69252.0,69251.0,0.065003]
[1730670010894,0.3608,69252.0,69251.0,0.065003]
[1730670011097,0.3608,69252.0,69251.0,0.10797119]
[1730670011302,0.3608,69252.0,69251.0,0.066003]
[1730670012101,0.3658,69252.0,69251.0,0.066003]
[1730670012508,0.3608,69252.0,69251.0,0.066003]
[1730670012807,0.3648,69252.0,69251.0,0.065003]
[1730670013505,0.3618,69252.0,69251.0,0.065003]
[1730670013714,0.3638,69252.0,69251.0,0.065003]
[1730670014901,0.3638,69252.0,69251.0,0.10797119]
[1730670015712,0.3628,69252.0,69251.0,0.065003]
[1730670016010,0.065005,69249.0,69248.0,0.04296819]
[1730670016196,0.065005,69249.0,69232.0,0.065021]
[1730670016197,0.065007,69248.0,69247.0,0.04296819]
[1730670016402,0.065007,69247.0,69246.0,0.10797619]
[1730670016614,0.48576652,69252.0,69246.0,0.10797619]
[1730670016904,0.065007,69247.0,69246.0,0.10797619]
[1730670017111,0.36156,69252.0,69246.0,0.10797619]
[1730670017301,0.3608,69252.0,69251.0,0.18996952]
[1730670017503,0.3608,69265.0,69261.0,0.064994]
[1730670017504,0.1028,69262.0,69261.0,0.064994]
[1730670018009,0.1028,69262.0,69257.0,0.064997]
[1730670018199,0.1028,69262.0,69252.0,0.04292163]
[1730670018200,0.18996352,69258.0,69252.0,0.04292163]
[1730670018513,0.065002,69252.0,69251.0,0.3608]
[1730670018808,0.065002,69252.0,69250.0,0.065004]
[1730670018809,0.065003,69251.0,69250.0,0.065004]
[1730670020414,0.065003,69251.0,69250.0,0.071004]
[1730670020601,0.065003,69251.0,69250.0,0.006]
[1730670021098,0.065006,69248.0,69247.0,0.065007]
[1730670021503,0.065009,69245.0,69244.0,0.04292163]
[1730670021708,0.425809,69245.0,69244.0,0.10793163]
[1730670022410,0.425809,69245.0,69238.0,0.05729093]
[1730670022411,0.065015,69241.0,69240.0,0.065013]
[1730670022614,0.48576652,69245.0,69233.0,0.04292163]
[1730670022615,0.1028,69242.0,69233.0,0.04292163]
[1730670022911,0.1028,69242.0,69233.0,0.065019]
[1730670022912,0.065021,69234.0,69233.0,0.065019]
[1730670023100,0.3608,69237.0,69227.0,0.04292163]
[1730670023300,0.3608,69230.0,69226.0,0.04292163]
[1730670023498,0.065026,69227.0,69226.0,0.065025]
[1730670023700,0.065026,69227.0,69221.0,0.0312]
[1730670023701,0.06503,69223.0,69222.0,0.06503]
[1730670024805,0.065034,69218.0,69217.0,0.0672017]
[1730670025997,0.42261933,69224.0,69217.0,0.0672017]
[1730670025998,0.065031,69222.0,69220.0,0.065032]
[1730670026705,0.42261933,69224.0,69220.0,0.065032]
[1730670026908,0.065031,69221.0,69220.0,0.065032]
[1730670028010,0.065031,69221.0,69220.0,0.067032]
[1730670028612,0.065031,69221.0,69220.0,0.065032]
[1730670028917,0.074031,69221.0,69220.0,0.065032]
[1730670029912,0.009,69221.0,69220.0,0.065032]
[1730670031324,0.006,69221.0,69220.0,0.065032]
[1730670032022,0.005,69221.0,69220.0,0.065032]
[1730670032826,0.004,69221.0,69220.0,0.065032]
[1730670033425,0.004,69221.0,69220.0,0.1078911]
[1730670033624,0.004,69221.0,69220.0,0.065032]
[1730670034315,0.004,69221.0,69220.0,0.10788593]
[1730670034518,0.004,69221.0,69220.0,0.065032]
[1730670034914,0.004,69221.0,69220.0,0.10788627]
[1730670037726,0.004,69221.0,69220.0,0.065032]
[1730670041135,0.069031,69221.0,69220.0,0.065032]
[1730670042032,0.066031,69221.0,69220.0,0.065032]
[1730670042222,0.071031,69221.0,69220.0,0.065032]
[1730670042925,0.070031,69221.0,69220.0,0.065032]
[1730670043127,0.073031,69221.0,69220.0,0.065032]
[1730670043525,0.10357783,69221.0,69220.0,0.065032]
[1730670043737,0.03854683,69221.0,69220.0,0.065032]
[1730670044035,0.10357783,69221.0,69220.0,0.065032]
[1730670045437,0.20689783,69221.0,69220.0,0.065032]
[1730670048430,0.20689783,69221.0,69220.0,0.12232293]
[1730670048730,0.20689783,69221.0,69220.0,0.065032]
[1730670050624,0.008,69221.0,69220.0,0.065032]
[1730670051642,0.008,69221.0,69220.0,0.22937782]
[1730670051940,0.007,69221.0,69220.0,0.15777098]
[1730670052438,0.005,69221.0,69220.0,0.15777098]
[1730670052642,0.005,69221.0,69220.0,0.065032]
[1730670052839,0.001,69221.0,69220.0,0.065032]
[1730670053038,0.004,69221.0,69220.0,0.065032]
[1730670053334,0.004,69221.0,69220.0,0.55584019]
[1730670053540,0.003,69221.0,69220.0,0.55584019]
[1730670053740,0.005,69221.0,69220.0,0.498432]
[1730670054242,0.005,69221.0,69220.0,0.065032]
[1730670054438,0.002,69221.0,69220.0,0.065032]
[1730670054629,0.3608,69230.0,69220.0,0.065032]
[1730670054630,0.3608,69230.0,69220.0,0.498432]
[1730670054940,0.3608,69230.0,69229.0,0.108072]
[1730670056040,0.3608,69230.0,69229.0,0.111072]
[1730670056242,0.3608,69230.0,69229.0,0.116072]
[1730670056446,0.3608,69230.0,69229.0,0.073024]
[1730670057836,0.3608,69230.0,69229.0,0.116072]
[1730670058042,0.3608,69230.0,69229.0,0.149072]
[1730670058434,0.3608,69230.0,69229.0,0.17964765]
[1730670059443,0.3608,69230.0,69229.0,0.13659965]
[1730670060639,0.3608,69230.0,69229.0,0.22860476]
[1730670062335,0.13358228,69241.0,69240.0,0.065014]
[1730670063143,0.13358228,69241.0,69240.0,0.1079736]
[1730670064544,0.13658228,69241.0,69240.0,0.1089736]
[1730670065349,0.20459528,69241.0,69240.0,0.001]
[1730670066147,0.20459528,69241.0,69240.0,0.04394925]
[1730670066453,0.20459528,69241.0,69240.0,0.10896325]
[1730670066761,0.20459528,69241.0,69240.0,0.066014]
[1730670067958,0.13958228,69241.0,69240.0,0.066014]
[1730670068152,0.03678228,69241.0,69240.0,0.066014]
[1730670068355,0.1088,69241.0,69240.0,0.066014]
[1730670068544,0.006,69241.0,69240.0,0.10894659]
[1730670068745,0.006,69241.0,69240.0,0.12330029]
[1730670068941,0.006,69241.0,69240.0,0.066014]
[1730670069251,0.006,69241.0,69240.0,0.28223019]
[1730670070261,0.006,69241.0,69240.0,0.64303019]
[1730670070646,0.003,69241.0,69240.0,0.64203019]
[1730670070842,0.003,69241.0,69240.0,0.64803019]
[1730670071361,0.003,69241.0,69240.0,0.62821992]
[1730670071949,0.0021674,69246.0,69245.0,0.065009]
[1730670072148,0.02995354,69251.0,69250.0,0.065004]
[1730670072459,0.3608,69255.0,69250.0,0.065004]
[1730670072643,0.3608,69255.0,69251.0,0.04285232]
[1730670073861,0.3608,69255.0,69254.0,0.065]
[1730670074154,0.3638,69255.0,69254.0,0.065]
[1730670074363,0.39499141,69255.0,69254.0,0.065]
[1730670074748,0.39799141,69255.0,69254.0,0.065]
[1730670076461,0.34895454,69255.0,69254.0,0.068]
[1730670076666,0.34595454,69255.0,69254.0,0.071]
[1730670077450,0.34595454,69255.0,69254.0,0.073]
[1730670078148,0.34595454,69255.0,69254.0,0.076]
[1730670078958,0.34595454,69255.0,69254.0,0.071]
[1730670079360,0.34595454,69255.0,69254.0,0.078]
[1730670086172,0.3608,69263.0,69262.0,0.064993]
[1730670086370,0.46352,69263.0,69262.0,0.064993]
[1730670086671,0.10272,69263.0,69262.0,0.064993]
[1730670087274,0.09541938,69266.0,69265.0,0.06499]
[1730670087572,0.13562,69266.0,69265.0,0.06499]
[1730670087779,0.10272,69266.0,69265.0,0.06499]
[1730670088979,0.006,69266.0,69265.0,0.06499]
[1730670099075,0.006,69266.0,69265.0,0.10784232]
[1730670100383,0.006,69266.0,69265.0,0.06499]
[1730670103476,0.15294402,69266.0,69265.0,0.06499]
[1730670103886,0.10761618,69266.0,69265.0,0.06499]
[1730670105285,0.10761618,69266.0,69253.0,0.0332]
[1730670105286,0.064995,69261.0,69260.0,0.064994]
[1730670105477,0.425795,69261.0,69260.0,0.064994]
[1730670105789,0.064995,69261.0,69260.0,0.064994]
[1730670107077,0.064995,69261.0,69260.0,0.065994]
[1730670110287,0.10142398,69261.0,69260.0,0.065994]
[1730670111582,0.03642898,69261.0,69260.0,0.065994]
[1730670111787,0.10272,69261.0,69260.0,0.065994]
[1730670112201,0.06865874,69269.0,69260.0,0.065994]
[1730670112202,0.13364574,69269.0,69261.0,0.064994]
[1730670112377,0.10272,69268.0,69262.0,0.0428745]
[1730670112581,0.10272,69268.0,69267.0,0.064988]
[1730670112582,0.064987,69268.0,69267.0,0.064988]
[1730670112783,0.167707,69268.0,69267.0,0.064988]
[1730670113279,0.06865874,69269.0,69268.0,0.064987]
[1730670113280,0.03645874,69269.0,69268.0,0.064987]
[1730670113490,0.10272,69269.0,69268.0,0.064987]
[1730670115093,0.46470981,69272.0,69271.0,0.064984]
[1730670115295,0.56658981,69272.0,69271.0,0.064984]
[1730670115496,0.62650809,69272.0,69258.0,0.425796]
[1730670115682,0.064989,69268.0,69267.0,0.064986]
[1730670116389,0.167629,69268.0,69267.0,0.064986]
[1730670117589,0.10264,69268.0,69267.0,0.064986]
[1730670118887,0.064986,69270.0,69261.0,0.064993]
[1730670119085,0.064986,69270.0,69269.0,0.064986]
[1730670119401,0.167626,69270.0,69269.0,0.064986]
[1730670120789,0.167626,69270.0,69269.0,0.065986]
[1730670122103,0.10264,69270.0,69269.0,0.002]
[1730670122292,0.10264,69270.0,69269.0,0.066986]
[1730670124297,0.064983,69273.0,69271.0,0.064984]
[1730670124605,0.10264,69272.0,69271.0,0.064984]
[1730670125705,0.10264,69272.0,69271.0,0.065984]
[1730670125891,0.10264,69272.0,69271.0,0.066984]
[1730670127100,0.72560628,69272.0,69271.0,0.002]
[1730670127300,0.68266733,69272.0,69271.0,0.002]
[1730670128006,0.72276038,69272.0,69271.0,0.002]
[1730670128602,0.33623156,69272.0,69271.0,0.066984]
[1730670129606,0.28968038,69272.0,69271.0,0.066984]
[1730670130008,0.72276038,69272.0,69271.0,0.002]
[1730670130309,0.28968038,69272.0,69271.0,0.002]
[1730670130506,0.33612868,69272.0,69271.0,0.002]
[1730670130996,0.28968038,69272.0,69271.0,0.002]
[1730670131202,0.18704038,69272.0,69271.0,0.066984]